[Event "*** Titled Tuesday Blitz"]
[Site "Chess.com"]
[Date "2018.12.04"]
[Round "1"]
[White "Mikhail_Golubev"]
[Black "BillForster"]
[Result "1-0"]
[WhiteElo "2475"]
[BlackElo "1718"]
[TimeControl "180+2"]
[EndTime "13:08:21 PST"]
[Termination "Mikhail_Golubev won by resignation"]

1. e4 {[%clk 0:03:01.9]} 1... c5 {[%clk 0:02:59.9]} 2. Nf3 {[%clk 0:03:02]} 2...
a6 {[%clk 0:03:00.6]} 3. Nc3 {[%clk 0:03:00.7]} 3... b5 {[%clk 0:03:00.1]} 4. d4
{[%clk 0:03:01.3]} 4... cxd4 {[%clk 0:02:56.2]} 5. Nxd4 {[%clk 0:03:01]} 5...
Bb7 {[%clk 0:02:56.4]} 6. Bd3 {[%clk 0:03:02]} 6... e6 {[%clk 0:02:56.5]} 7. O-O
{[%clk 0:02:44.8]} 7... Nc6 {[%clk 0:02:34.1]} 8. Be3 {[%clk 0:02:21.8]} 8...
Nge7 {[%clk 0:02:18.2]} 9. Nb3 {[%clk 0:01:55.4]} 9... Ng6 {[%clk 0:02:16.2]}
10. f4 {[%clk 0:01:54.5]} 10... Be7 {[%clk 0:02:09.1]} 11. a4 {[%clk 0:01:40.4]}
11... b4 {[%clk 0:02:03.3]} 12. Ne2 {[%clk 0:01:41.2]} 12... O-O {[%clk
0:02:01.5]} 13. Qd2 {[%clk 0:01:35]} 13... Qc7 {[%clk 0:01:49]} 14. a5 {[%clk
0:01:35.8]} 14... Rfd8 {[%clk 0:01:39.6]} 15. Bb6 {[%clk 0:01:17.9]} 15... Qb8
{[%clk 0:01:25.1]} 16. Bxd8 {[%clk 0:01:18.8]} 16... Qxd8 {[%clk 0:01:24.2]} 17.
Kh1 {[%clk 0:01:20.3]} 17... Rc8 {[%clk 0:01:22.9]} 18. Nbd4 {[%clk 0:01:05.9]}
18... d5 {[%clk 0:01:17]} 19. Nxc6 {[%clk 0:01:04.3]} 19... Rxc6 {[%clk
0:01:13.5]} 20. Nd4 {[%clk 0:01:03.5]} 20... Rc8 {[%clk 0:01:09.7]} 21. e5
{[%clk 0:01:04.2]} 21... Bc5 {[%clk 0:01:01.2]} 22. Be2 {[%clk 0:01:03.4]} 22...
Rc7 {[%clk 0:00:57.9]} 23. c3 {[%clk 0:00:57.1]} 23... bxc3 {[%clk 0:00:55.4]}
24. bxc3 {[%clk 0:00:58.2]} 24... Qa8 {[%clk 0:00:54]} 25. Qe3 {[%clk
0:00:55.4]} 25... Qa7 {[%clk 0:00:52.1]} 26. f5 {[%clk 0:00:55.4]} 26... exf5
{[%clk 0:00:49]} 27. Rxf5 {[%clk 0:00:56]} 27... Nf8 {[%clk 0:00:44]} 28. Raf1
{[%clk 0:00:50.8]} 28... Bc8 {[%clk 0:00:43.1]} 29. R5f4 {[%clk 0:00:39.3]}
29... Be6 {[%clk 0:00:41]} 30. Bd3 {[%clk 0:00:38.3]} 30... Rb7 {[%clk
0:00:36.4]} 31. Qg3 {[%clk 0:00:36.6]} 31... Rb2 {[%clk 0:00:34.7]} 32. h4
{[%clk 0:00:26.6]} 32... Qe7 {[%clk 0:00:26.6]} 33. h5 {[%clk 0:00:25.6]} 33...
h6 {[%clk 0:00:22.8]} 34. Qf3 {[%clk 0:00:24.6]} 34... Bxd4 {[%clk 0:00:20.2]}
35. cxd4 {[%clk 0:00:25.1]} 35... Qg5 {[%clk 0:00:19.5]} 36. Bxa6 {[%clk
0:00:24.5]} 36... Rd2 {[%clk 0:00:12.5]} 37. Bd3 {[%clk 0:00:24.3]} 37... Bf5
{[%clk 0:00:10.1]} 38. Bxf5 {[%clk 0:00:23]} 1-0

[Event "*** Titled Tuesday Blitz"]
[Site "Chess.com"]
[Date "2018.12.04"]
[Round "1"]
[White "Guenplen"]
[Black "nOcHeaTiNgKiD"]
[Result "1-0"]
[WhiteElo "2816"]
[BlackElo "2430"]
[TimeControl "180+2"]
[EndTime "13:08:26 PST"]
[Termination "Guenplen won by resignation"]

1. d4 {[%clk 0:03:00.5]} 1... Nf6 {[%clk 0:02:59.4]} 2. Bf4 {[%clk 0:03:01.1]}
2... d5 {[%clk 0:02:59.3]} 3. e3 {[%clk 0:03:01.9]} 3... e6 {[%clk 0:03:00.4]}
4. Nd2 {[%clk 0:03:02.3]} 4... Bd6 {[%clk 0:03:01.4]} 5. Bg3 {[%clk 0:03:03.2]}
5... O-O {[%clk 0:03:02.4]} 6. Bd3 {[%clk 0:03:03.6]} 6... c5 {[%clk 0:03:03.6]}
7. c3 {[%clk 0:03:04.9]} 7... Qc7 {[%clk 0:03:04.9]} 8. dxc5 {[%clk 0:03:03.2]}
8... Qxc5 {[%clk 0:03:05.2]} 9. Ngf3 {[%clk 0:03:04.2]} 9... Nbd7 {[%clk
0:03:03.3]} 10. Qe2 {[%clk 0:02:53.5]} 10... a6 {[%clk 0:02:59]} 11. e4 {[%clk
0:02:52.4]} 11... dxe4 {[%clk 0:02:57.8]} 12. Nxe4 {[%clk 0:02:54.3]} 12... Nxe4
{[%clk 0:02:58.4]} 13. Bxe4 {[%clk 0:02:54.5]} 13... Nf6 {[%clk 0:02:58]} 14.
Bc2 {[%clk 0:02:52.1]} 14... b5 {[%clk 0:02:58.7]} 15. Rd1 {[%clk 0:02:50.1]}
15... Bxg3 {[%clk 0:02:51.8]} 16. hxg3 {[%clk 0:02:52]} 16... h6 {[%clk
0:02:52.3]} 17. Qe5 {[%clk 0:02:50.3]} 17... Qxe5+ {[%clk 0:02:46.1]} 18. Nxe5
{[%clk 0:02:52.2]} 18... Bb7 {[%clk 0:02:47.4]} 19. f3 {[%clk 0:02:52.9]} 19...
Rfd8 {[%clk 0:02:47.8]} 20. Kf2 {[%clk 0:02:51.2]} 20... Kf8 {[%clk 0:02:47]}
21. g4 {[%clk 0:02:45.1]} 21... Ke7 {[%clk 0:02:40.6]} 22. a3 {[%clk 0:02:37.6]}
22... Bd5 {[%clk 0:02:34.8]} 23. Nd3 {[%clk 0:02:32.8]} 23... a5 {[%clk
0:02:28.3]} 24. Rhe1 {[%clk 0:02:29.4]} 24... Rab8 {[%clk 0:02:22.8]} 25. Kg3
{[%clk 0:02:23.1]} 25... Rdc8 {[%clk 0:02:20.1]} 26. Bb1 {[%clk 0:02:20.8]}
26... Bb3 {[%clk 0:02:19.1]} 27. Rd2 {[%clk 0:02:20.3]} 27... Rd8 {[%clk
0:02:19.1]} 28. Rde2 {[%clk 0:02:02.7]} 28... Bc4 {[%clk 0:02:18.2]} 29. Ne5
{[%clk 0:01:58.7]} 29... Bxe2 {[%clk 0:02:07.3]} 30. Nc6+ {[%clk 0:01:59.5]}
30... Kd6 {[%clk 0:02:04.2]} 31. Nxd8 {[%clk 0:01:55.4]} 31... Rxd8 {[%clk
0:02:04]} 32. Rxe2 {[%clk 0:01:56.6]} 32... Kc5 {[%clk 0:02:01.7]} 33. Ba2
{[%clk 0:01:49.6]} 33... Rd1 {[%clk 0:01:40.2]} 34. b4+ {[%clk 0:01:22.4]} 34...
axb4 {[%clk 0:01:40.4]} 35. axb4+ {[%clk 0:01:18.9]} 35... Kc6 {[%clk
0:01:39.9]} 36. c4 {[%clk 0:01:18.9]} 36... bxc4 {[%clk 0:01:38.8]} 37. Bxc4
{[%clk 0:01:19.9]} 37... Rd4 {[%clk 0:01:36.2]} 38. Rc2 {[%clk 0:01:19.6]} 38...
Kb6 {[%clk 0:01:36.3]} 39. b5 {[%clk 0:01:18.6]} 39... Nd5 {[%clk 0:01:33.6]}
40. Be2 {[%clk 0:01:10]} 40... Nb4 {[%clk 0:01:19.4]} 41. Rc8 {[%clk 0:01:08.3]}
41... Nd3 {[%clk 0:01:10]} 42. Rb8+ {[%clk 0:00:47.3]} 42... Kc5 {[%clk
0:00:57.7]} 43. Bxd3 {[%clk 0:00:43.8]} 43... Rxd3 {[%clk 0:00:58.3]} 44. Rb7
{[%clk 0:00:45.4]} 44... g5 {[%clk 0:00:32.5]} 45. Rxf7 {[%clk 0:00:44.5]} 45...
Rb3 {[%clk 0:00:21.6]} 46. Rf6 {[%clk 0:00:42.6]} 46... Kd5 {[%clk 0:00:22.7]}
47. Rxh6 {[%clk 0:00:43.8]} 47... Ke5 {[%clk 0:00:23.3]} 48. Rg6 {[%clk
0:00:44.2]} 1-0

[Event "*** Titled Tuesday Blitz"]
[Site "Chess.com"]
[Date "2018.12.04"]
[Round "1"]
[White "StephenDedalus83"]
[Black "SARGISMV"]
[Result "0-1"]
[WhiteElo "2732"]
[BlackElo "2418"]
[TimeControl "180+2"]
[EndTime "13:08:30 PST"]
[Termination "SARGISMV won by checkmate"]

1. e4 {[%clk 0:03:01.9]} 1... e6 {[%clk 0:03:00.1]} 2. d4 {[%clk 0:03:02.4]}
2... d5 {[%clk 0:03:00.6]} 3. Nc3 {[%clk 0:03:03.9]} 3... Bb4 {[%clk 0:03:00.9]}
4. e5 {[%clk 0:03:05]} 4... c5 {[%clk 0:03:01.8]} 5. a3 {[%clk 0:03:06.6]} 5...
Bxc3+ {[%clk 0:03:03]} 6. bxc3 {[%clk 0:03:08.2]} 6... Ne7 {[%clk 0:03:04.9]} 7.
Qg4 {[%clk 0:03:08.9]} 7... O-O {[%clk 0:03:05.2]} 8. Bd3 {[%clk 0:03:10]} 8...
Nbc6 {[%clk 0:03:06]} 9. Qh5 {[%clk 0:03:10.3]} 9... Ng6 {[%clk 0:03:06.3]} 10.
Nf3 {[%clk 0:03:09.8]} 10... Qc7 {[%clk 0:03:03.8]} 11. Be3 {[%clk 0:03:10.5]}
11... c4 {[%clk 0:03:04.5]} 12. Bxg6 {[%clk 0:03:09.8]} 12... fxg6 {[%clk
0:03:06.4]} 13. Qg4 {[%clk 0:03:10.9]} 13... b5 {[%clk 0:03:07.2]} 14. h4 {[%clk
0:03:10.8]} 14... Rf5 {[%clk 0:03:03]} 15. Qh3 {[%clk 0:03:09]} 15... h6 {[%clk
0:03:02.4]} 16. g4 {[%clk 0:03:07.6]} 16... Rf8 {[%clk 0:03:02.9]} 17. Ng1
{[%clk 0:02:53.7]} 17... Bd7 {[%clk 0:02:24.7]} 18. Ne2 {[%clk 0:02:53.1]} 18...
Ne7 {[%clk 0:02:17.8]} 19. h5 {[%clk 0:02:46.7]} 19... gxh5 {[%clk 0:01:57.1]}
20. Qxh5 {[%clk 0:02:46.5]} 20... Be8 {[%clk 0:01:57.4]} 21. Qh3 {[%clk
0:02:47.3]} 21... Bg6 {[%clk 0:01:57.7]} 22. Nf4 {[%clk 0:02:35.9]} 22... Rxf4
{[%clk 0:01:57.6]} 23. Bxf4 {[%clk 0:02:36.6]} 23... Rf8 {[%clk 0:01:55.3]} 24.
Be3 {[%clk 0:02:31.4]} 24... Bxc2 {[%clk 0:01:55.4]} 25. g5 {[%clk 0:02:25.2]}
25... Bf5 {[%clk 0:01:55.4]} 26. Qh2 {[%clk 0:02:15.4]} 26... hxg5 {[%clk
0:01:42.6]} 27. Bxg5 {[%clk 0:02:11.1]} 27... Ng6 {[%clk 0:01:43.1]} 28. Rg1
{[%clk 0:01:23.2]} 28... Kf7 {[%clk 0:01:41.8]} 29. Bd2 {[%clk 0:01:18.7]} 29...
Rh8 {[%clk 0:01:37.1]} 30. Qg3 {[%clk 0:01:19.6]} 30... Rh3 {[%clk 0:01:35.6]}
31. Qg5 {[%clk 0:01:19]} 31... Qa5 {[%clk 0:01:25.8]} 32. Rg3 {[%clk 0:01:07.7]}
32... Rh1+ {[%clk 0:01:22.5]} 33. Rg1 {[%clk 0:01:08.7]} 33... Rh3 {[%clk
0:01:22]} 34. Kf1 {[%clk 0:01:09.7]} 34... Qa4 {[%clk 0:01:01.4]} 35. Qd8 {[%clk
0:01:05.9]} 35... Qc2 {[%clk 0:00:58.1]} 36. Qg5 {[%clk 0:00:55.7]} 36... Rd3
{[%clk 0:00:45.3]} 37. Ke1 {[%clk 0:00:53.6]} 37... Rf3 {[%clk 0:00:30.1]} 38.
Rg3 {[%clk 0:00:50.5]} 38... Qe4+ {[%clk 0:00:28.9]} 39. Kd1 {[%clk 0:00:46.4]}
39... Rxf2 {[%clk 0:00:27.7]} 40. Qe3 {[%clk 0:00:37.3]} 40... Rf1+ {[%clk
0:00:24.6]} 41. Be1 {[%clk 0:00:37.4]} 41... Qc2# {[%clk 0:00:22.6]} 0-1

[Event "*** Titled Tuesday Blitz"]
[Site "Chess.com"]
[Date "2018.12.04"]
[Round "1"]
[White "Supernotar"]
[Black "cherryandmint"]
[Result "0-1"]
[WhiteElo "2386"]
[BlackElo "2723"]
[TimeControl "180+2"]
[EndTime "13:08:30 PST"]
[Termination "cherryandmint won by checkmate"]

1. d4 {[%clk 0:02:55.2]} 1... d5 {[%clk 0:03:00.6]} 2. c4 {[%clk 0:02:56.3]}
2... e6 {[%clk 0:03:01.8]} 3. Nf3 {[%clk 0:02:57.3]} 3... Nf6 {[%clk 0:03:02.9]}
4. e3 {[%clk 0:02:58.5]} 4... Bd6 {[%clk 0:03:03]} 5. Nbd2 {[%clk 0:02:59.7]}
5... b6 {[%clk 0:03:02.1]} 6. Bd3 {[%clk 0:03:01]} 6... Bb7 {[%clk 0:03:03.1]}
7. O-O {[%clk 0:03:02.3]} 7... O-O {[%clk 0:03:03.3]} 8. Qe2 {[%clk 0:03:03.8]}
8... Nbd7 {[%clk 0:03:03.4]} 9. b3 {[%clk 0:03:04.7]} 9... Ne4 {[%clk
0:03:03.6]} 10. Bb2 {[%clk 0:03:04.4]} 10... Qe7 {[%clk 0:02:58.9]} 11. cxd5
{[%clk 0:03:04.8]} 11... exd5 {[%clk 0:02:59.7]} 12. Ba6 {[%clk 0:03:06]} 12...
Bxa6 {[%clk 0:02:55.4]} 13. Qxa6 {[%clk 0:03:07.1]} 13... Ndf6 {[%clk
0:02:53.4]} 14. Rac1 {[%clk 0:03:04.7]} 14... Qe6 {[%clk 0:02:25.6]} 15. Rc2
{[%clk 0:03:04.6]} 15... Qf5 {[%clk 0:02:19.5]} 16. Rfc1 {[%clk 0:03:03.7]}
16... Ng4 {[%clk 0:02:07.9]} 17. Nf1 {[%clk 0:03:03.1]} 17... Rfe8 {[%clk
0:01:54.4]} 18. Qe2 {[%clk 0:03:01.4]} 18... Ngxf2 {[%clk 0:01:47.3]} 19. Ne5
{[%clk 0:02:55.4]} 19... c5 {[%clk 0:01:35.2]} 20. Qf3 {[%clk 0:02:51.2]} 20...
Qe6 {[%clk 0:01:06.5]} 21. Rxf2 {[%clk 0:02:47.7]} 21... Nxf2 {[%clk 0:01:08.4]}
22. Qxf2 {[%clk 0:02:48.5]} 22... Rac8 {[%clk 0:01:10.3]} 23. Ng3 {[%clk
0:02:44.8]} 23... cxd4 {[%clk 0:01:09.5]} 24. Rxc8 {[%clk 0:02:44.6]} 24... Rxc8
{[%clk 0:01:06.1]} 25. exd4 {[%clk 0:02:45.8]} 25... f6 {[%clk 0:00:56.6]} 26.
Nd3 {[%clk 0:02:46.6]} 26... Bxg3 {[%clk 0:00:52.3]} 27. hxg3 {[%clk 0:02:46.4]}
27... Qe4 {[%clk 0:00:52.4]} 28. Qd2 {[%clk 0:02:44.7]} 28... h5 {[%clk
0:00:46.1]} 29. Kh2 {[%clk 0:02:43.9]} 29... h4 {[%clk 0:00:46.5]} 30. gxh4
{[%clk 0:02:44.8]} 30... Qxh4+ {[%clk 0:00:48.4]} 31. Kg1 {[%clk 0:02:46.3]}
31... Qe4 {[%clk 0:00:49.6]} 32. Bc3 {[%clk 0:02:45]} 32... Re8 {[%clk
0:00:46.8]} 33. Kf2 {[%clk 0:02:43.1]} 33... Qf5+ {[%clk 0:00:47]} 34. Kg1
{[%clk 0:02:44.3]} 34... Qg4 {[%clk 0:00:43.9]} 35. Kf2 {[%clk 0:02:43.1]} 35...
Re4 {[%clk 0:00:41.9]} 36. a4 {[%clk 0:02:34.1]} 36... Qh4+ {[%clk 0:00:43.1]}
37. Kf1 {[%clk 0:02:30.5]} 37... Qh1+ {[%clk 0:00:42.5]} 38. Kf2 {[%clk
0:02:32]} 38... Qb1 {[%clk 0:00:41.8]} 39. Bb2 {[%clk 0:02:28.4]} 39... Qh1
{[%clk 0:00:41.7]} 40. Bc3 {[%clk 0:02:25.3]} 40... Qh4+ {[%clk 0:00:42.7]} 41.
Kf1 {[%clk 0:02:25.8]} 41... Qg3 {[%clk 0:00:44]} 42. Nf2 {[%clk 0:02:17.7]}
42... Rf4 {[%clk 0:00:45.4]} 43. Qe1 {[%clk 0:02:15]} 43... Rxf2+ {[%clk
0:00:44.7]} 44. Qxf2 {[%clk 0:02:15.9]} 44... Qxc3 {[%clk 0:00:46.3]} 45. Qf4
{[%clk 0:02:08.7]} 45... Qc8 {[%clk 0:00:39.8]} 46. Qd6 {[%clk 0:02:08.4]} 46...
Qf5+ {[%clk 0:00:36.6]} 47. Kg1 {[%clk 0:02:09.6]} 47... Kh7 {[%clk 0:00:37.9]}
48. Qh2+ {[%clk 0:02:08.8]} 48... Kg6 {[%clk 0:00:39.2]} 49. Qg3+ {[%clk
0:02:10.4]} 49... Qg5 {[%clk 0:00:40.6]} 50. Qd3+ {[%clk 0:02:10.2]} 50... Kf7
{[%clk 0:00:41.2]} 51. Qa6 {[%clk 0:02:08.1]} 51... Qe3+ {[%clk 0:00:42.1]} 52.
Kh2 {[%clk 0:02:07.9]} 52... Qf4+ {[%clk 0:00:43.3]} 53. Kh1 {[%clk 0:02:07.9]}
53... Qxd4 {[%clk 0:00:43.9]} 54. Qxa7+ {[%clk 0:02:08.7]} 54... Kg6 {[%clk
0:00:45.5]} 55. Qd7 {[%clk 0:02:03.4]} 55... Qd1+ {[%clk 0:00:45.7]} 56. Kh2
{[%clk 0:02:04.6]} 56... d4 {[%clk 0:00:44.9]} 57. b4 {[%clk 0:02:00.1]} 57...
d3 {[%clk 0:00:45.9]} 58. a5 {[%clk 0:02:01.3]} 58... bxa5 {[%clk 0:00:46.6]}
59. bxa5 {[%clk 0:02:03.2]} 59... d2 {[%clk 0:00:47.8]} 60. Qd3+ {[%clk
0:02:03.9]} 60... Kh6 {[%clk 0:00:45.9]} 61. Qe3+ {[%clk 0:01:58.9]} 61... g5
{[%clk 0:00:46]} 62. Qe7 {[%clk 0:01:50.7]} 62... Qh5+ {[%clk 0:00:44.4]} 63.
Kg3 {[%clk 0:01:52.2]} 63... Qh4+ {[%clk 0:00:45.6]} 64. Kf3 {[%clk 0:01:52.1]}
64... d1=Q+ {[%clk 0:00:46.1]} 65. Qe2 {[%clk 0:01:53]} 65... Qxe2+ {[%clk
0:00:46.9]} 66. Kxe2 {[%clk 0:01:51.2]} 66... Qa4 {[%clk 0:00:48.8]} 67. a6
{[%clk 0:01:51.7]} 67... Qxa6+ {[%clk 0:00:49.9]} 68. Kf3 {[%clk 0:01:53.6]}
68... Kg6 {[%clk 0:00:51.4]} 69. g4 {[%clk 0:01:54]} 69... f5 {[%clk 0:00:52.8]}
70. gxf5+ {[%clk 0:01:55.2]} 70... Kxf5 {[%clk 0:00:54.7]} 71. Kg3 {[%clk
0:01:57.1]} 71... g4 {[%clk 0:00:56]} 72. Kh4 {[%clk 0:01:58.2]} 72... Qd3
{[%clk 0:00:57]} 73. Kh5 {[%clk 0:01:59.6]} 73... Qh3# {[%clk 0:00:58.6]} 0-1

[Event "*** Titled Tuesday Blitz"]
[Site "Chess.com"]
[Date "2018.12.04"]
[Round "1"]
[White "GremioPrudente"]
[Black "grzechu96"]
[Result "0-1"]
[WhiteElo "2138"]
[BlackElo "2531"]
[TimeControl "180+2"]
[EndTime "13:08:30 PST"]
[Termination "grzechu96 won on time"]

1. Nf3 {[%clk 0:03:00.9]} 1... c5 {[%clk 0:02:59.2]} 2. c4 {[%clk 0:03:01.1]}
2... Nc6 {[%clk 0:03:00.1]} 3. g3 {[%clk 0:03:00.2]} 3... g6 {[%clk 0:03:00.7]}
4. Bg2 {[%clk 0:03:00.1]} 4... Bg7 {[%clk 0:03:02]} 5. Nc3 {[%clk 0:03:00.9]}
5... e6 {[%clk 0:03:03.2]} 6. O-O {[%clk 0:03:00.6]} 6... Nge7 {[%clk
0:03:04.8]} 7. Rb1 {[%clk 0:02:51.6]} 7... O-O {[%clk 0:03:04.5]} 8. a3 {[%clk
0:02:52.5]} 8... d5 {[%clk 0:03:05.3]} 9. cxd5 {[%clk 0:02:51.6]} 9... exd5
{[%clk 0:03:07.2]} 10. d3 {[%clk 0:02:46.3]} 10... a5 {[%clk 0:02:43.2]} 11. Bg5
{[%clk 0:02:36.5]} 11... h6 {[%clk 0:02:43.9]} 12. Bxe7 {[%clk 0:02:32.2]} 12...
Nxe7 {[%clk 0:02:45.8]} 13. Qd2 {[%clk 0:02:20.7]} 13... a4 {[%clk 0:02:39.1]}
14. Qc2 {[%clk 0:02:16.9]} 14... Qa5 {[%clk 0:02:39]} 15. Nd2 {[%clk 0:02:10.2]}
15... Be6 {[%clk 0:02:38.1]} 16. Nf3 {[%clk 0:02:07.9]} 16... Rfc8 {[%clk
0:02:36.7]} 17. Rfd1 {[%clk 0:02:04.7]} 17... b5 {[%clk 0:02:37.2]} 18. Rdc1
{[%clk 0:01:45.3]} 18... Nf5 {[%clk 0:01:38.1]} 19. Nd1 {[%clk 0:01:37.9]} 19...
Rab8 {[%clk 0:01:25.6]} 20. Ne3 {[%clk 0:01:33.3]} 20... Nd4 {[%clk 0:01:23.1]}
21. Qd1 {[%clk 0:01:19.8]} 21... Nb3 {[%clk 0:01:23.8]} 22. Rc2 {[%clk
0:01:11.4]} 22... b4 {[%clk 0:01:15.6]} 23. axb4 {[%clk 0:01:10.3]} 23... Qxb4
{[%clk 0:01:15.9]} 24. Qe1 {[%clk 0:00:45.9]} 24... Qxe1+ {[%clk 0:00:58]} 25.
Rxe1 {[%clk 0:00:30.5]} 25... Na5 {[%clk 0:00:59]} 26. Nd1 {[%clk 0:00:22.6]}
26... Rb5 {[%clk 0:00:42.6]} 27. Nc3 {[%clk 0:00:23.3]} 27... Bxc3 {[%clk
0:00:36]} 28. bxc3 {[%clk 0:00:23.9]} 28... Nb3 {[%clk 0:00:36.7]} 29. c4 {[%clk
0:00:14]} 29... dxc4 {[%clk 0:00:36.9]} 30. dxc4 {[%clk 0:00:15]} 30... Rb4
{[%clk 0:00:38.2]} 31. Ne5 {[%clk 0:00:10.2]} 31... f6 {[%clk 0:00:34]} 32. Nc6
{[%clk 0:00:09.7]} 32... Rxc6 {[%clk 0:00:10.1]} 33. Bxc6 {[%clk 0:00:10.2]}
33... Nd4 {[%clk 0:00:04.9]} 0-1

[Event "*** Titled Tuesday Blitz"]
[Site "Chess.com"]
[Date "2018.12.04"]
[Round "1"]
[White "VeraNebolsina"]
[Black "kleinebeer98"]
[Result "1-0"]
[WhiteElo "2385"]
[BlackElo "2683"]
[TimeControl "180+2"]
[EndTime "13:08:37 PST"]
[Termination "VeraNebolsina won by resignation"]

1. e4 {[%clk 0:03:01.9]} 1... e5 {[%clk 0:02:58.6]} 2. Nf3 {[%clk 0:03:02.7]}
2... Nc6 {[%clk 0:02:59.6]} 3. Nc3 {[%clk 0:03:03.6]} 3... Nf6 {[%clk
0:02:59.9]} 4. d4 {[%clk 0:03:04.7]} 4... exd4 {[%clk 0:02:57.3]} 5. Nxd4 {[%clk
0:03:05.8]} 5... Nxe4 {[%clk 0:02:54]} 6. Nxe4 {[%clk 0:01:38]} 6... Qe7 {[%clk
0:02:54.4]} 7. f3 {[%clk 0:01:29.7]} 7... d5 {[%clk 0:02:55.8]} 8. Bb5 {[%clk
0:01:25.1]} 8... Bd7 {[%clk 0:02:55.4]} 9. Bxc6 {[%clk 0:01:19.8]} 9... bxc6
{[%clk 0:02:55.5]} 10. O-O {[%clk 0:01:19.1]} 10... dxe4 {[%clk 0:02:55.7]} 11.
Re1 {[%clk 0:01:20.3]} 11... O-O-O {[%clk 0:02:57.1]} 12. Rxe4 {[%clk
0:01:18.1]} 12... Qb4 {[%clk 0:02:47.5]} 13. Bd2 {[%clk 0:01:06.3]} 13... Qb6
{[%clk 0:02:43.6]} 14. Be3 {[%clk 0:01:00.3]} 14... c5 {[%clk 0:02:34.9]} 15.
Nb3 {[%clk 0:00:38.2]} 15... Bc6 {[%clk 0:02:26]} 16. Qe2 {[%clk 0:00:39.4]}
16... Bxe4 {[%clk 0:02:25.6]} 17. fxe4 {[%clk 0:00:40.7]} 17... Be7 {[%clk
0:02:16.6]} 18. a4 {[%clk 0:00:39]} 18... Rhe8 {[%clk 0:02:05.4]} 19. a5 {[%clk
0:00:34.9]} 19... Qc6 {[%clk 0:02:05.5]} 20. Qc4 {[%clk 0:00:30.2]} 20... Bd6
{[%clk 0:01:52.1]} 21. Nd2 {[%clk 0:00:27.2]} 21... f5 {[%clk 0:01:12.3]} 22.
Ra3 {[%clk 0:00:23.1]} 22... Be5 {[%clk 0:01:06.6]} 23. Rb3 {[%clk 0:00:22.1]}
23... Bd4 {[%clk 0:00:59.5]} 24. Bxd4 {[%clk 0:00:15.2]} 24... Rxd4 {[%clk
0:01:01.4]} 25. Qf7 {[%clk 0:00:16.1]} 25... fxe4 {[%clk 0:00:58.8]} 26. Nf1
{[%clk 0:00:15.6]} 26... Rd6 {[%clk 0:00:49]} 27. Ne3 {[%clk 0:00:16.3]} 27...
Rf6 {[%clk 0:00:47.5]} 28. Qc4 {[%clk 0:00:17.4]} 28... Ref8 {[%clk 0:00:44.2]}
29. h3 {[%clk 0:00:17.9]} 29... Qd6 {[%clk 0:00:43.6]} 30. Qb5 {[%clk 0:00:11]}
30... Qd4 {[%clk 0:00:36.9]} 31. Qb7+ {[%clk 0:00:07.5]} 31... Kd7 {[%clk
0:00:36.7]} 32. Kh2 {[%clk 0:00:07.6]} 32... Qe5+ {[%clk 0:00:20.4]} 33. Kg1
{[%clk 0:00:08.4]} 33... Qd4 {[%clk 0:00:20.3]} 34. Kh2 {[%clk 0:00:09.4]} 34...
h5 {[%clk 0:00:21.5]} 35. Rc3 {[%clk 0:00:08.9]} 35... Qe5+ {[%clk 0:00:22.1]}
36. Kg1 {[%clk 0:00:09.8]} 36... Qd4 {[%clk 0:00:23.7]} 37. Kh2 {[%clk
0:00:10.9]} 37... Rf1 {[%clk 0:00:20]} 38. Nxf1 {[%clk 0:00:10.4]} 38... Rxf1
{[%clk 0:00:21.9]} 39. Qb5+ {[%clk 0:00:11]} 39... c6 {[%clk 0:00:20.2]} 40.
Qxf1 {[%clk 0:00:12.9]} 40... Qe5+ {[%clk 0:00:21.4]} 41. Kg1 {[%clk 0:00:13.7]}
41... e3 {[%clk 0:00:21.4]} 42. Qe2 {[%clk 0:00:14.6]} 1-0

[Event "*** Titled Tuesday Blitz"]
[Site "Chess.com"]
[Date "2018.12.04"]
[Round "1"]
[White "ruvat"]
[Black "NikolaGry"]
[Result "0-1"]
[WhiteElo "2301"]
[BlackElo "2639"]
[TimeControl "180+2"]
[EndTime "13:08:39 PST"]
[Termination "NikolaGry won by resignation"]

1. d4 {[%clk 0:02:59.7]} 1... d5 {[%clk 0:03:00.4]} 2. Nf3 {[%clk 0:02:59.1]}
2... Nc6 {[%clk 0:03:00.9]} 3. c4 {[%clk 0:02:59.1]} 3... Bg4 {[%clk 0:03:01.4]}
4. Nc3 {[%clk 0:02:59.1]} 4... Bxf3 {[%clk 0:03:01.7]} 5. gxf3 {[%clk
0:02:57.4]} 5... e6 {[%clk 0:03:02.7]} 6. e3 {[%clk 0:02:56.8]} 6... Bb4 {[%clk
0:02:57.7]} 7. Bd2 {[%clk 0:02:50.1]} 7... Nge7 {[%clk 0:02:57.1]} 8. Qc2 {[%clk
0:02:46.7]} 8... a6 {[%clk 0:02:42.2]} 9. f4 {[%clk 0:02:46.1]} 9... dxc4 {[%clk
0:02:32]} 10. Bxc4 {[%clk 0:02:46]} 10... Nd5 {[%clk 0:02:32.9]} 11. a3 {[%clk
0:02:33.5]} 11... Bxc3 {[%clk 0:02:20.7]} 12. bxc3 {[%clk 0:02:29.9]} 12... O-O
{[%clk 0:02:16.2]} 13. O-O {[%clk 0:02:24.5]} 13... f5 {[%clk 0:02:11.6]} 14.
Kh1 {[%clk 0:02:23]} 14... b5 {[%clk 0:02:10.4]} 15. Bd3 {[%clk 0:02:22.7]}
15... Na5 {[%clk 0:02:08.6]} 16. c4 {[%clk 0:02:04.5]} 16... Nxc4 {[%clk
0:02:08.7]} 17. Bxc4 {[%clk 0:02:03.3]} 17... bxc4 {[%clk 0:02:09.6]} 18. Qxc4
{[%clk 0:02:04.1]} 18... Qd7 {[%clk 0:02:10.5]} 19. Bb4 {[%clk 0:01:53]} 19...
Rf6 {[%clk 0:02:01.4]} 20. Rac1 {[%clk 0:01:45.9]} 20... Rh6 {[%clk 0:01:49.2]}
21. Qc6 {[%clk 0:01:40.6]} 21... Qd8 {[%clk 0:01:49.4]} 22. Rg1 {[%clk
0:01:38.6]} 22... Rb8 {[%clk 0:01:12.1]} 23. Rg5 {[%clk 0:01:18]} 23... Rb6
{[%clk 0:01:01.5]} 24. Qc5 {[%clk 0:01:11.8]} 24... Rg6 {[%clk 0:00:59.5]} 25.
Rcg1 {[%clk 0:00:57.3]} 25... Rxg5 {[%clk 0:00:58.7]} 26. Rxg5 {[%clk
0:00:54.6]} 26... h6 {[%clk 0:00:57.5]} 27. Rg1 {[%clk 0:00:50.4]} 27... Qa8
{[%clk 0:00:50.5]} 28. Rg2 {[%clk 0:00:40.8]} 28... Rc6 {[%clk 0:00:50.1]} 29.
Qa5 {[%clk 0:00:36.3]} 29... Rc1+ {[%clk 0:00:46.3]} 30. Be1 {[%clk 0:00:36.3]}
30... Nc3 {[%clk 0:00:45.3]} 31. Qxc3 {[%clk 0:00:31.2]} 31... Rxc3 {[%clk
0:00:45.8]} 32. Bxc3 {[%clk 0:00:33.1]} 32... Qf3 {[%clk 0:00:45.5]} 33. h3
{[%clk 0:00:29.3]} 33... Qxh3+ {[%clk 0:00:41.2]} 34. Kg1 {[%clk 0:00:27.7]}
34... Kf7 {[%clk 0:00:41.1]} 35. d5 {[%clk 0:00:26.2]} 35... g5 {[%clk
0:00:41.7]} 36. dxe6+ {[%clk 0:00:25]} 36... Kxe6 {[%clk 0:00:41.9]} 37. fxg5
{[%clk 0:00:26.4]} 37... hxg5 {[%clk 0:00:42.5]} 38. Rxg5 {[%clk 0:00:27.8]}
38... Qf3 {[%clk 0:00:42]} 39. Bd4 {[%clk 0:00:25.5]} 39... Kd5 {[%clk
0:00:35.8]} 40. Rg6 {[%clk 0:00:24.5]} 40... c5 {[%clk 0:00:33.8]} 41. Bg7
{[%clk 0:00:15.6]} 41... Kc4 {[%clk 0:00:31.7]} 42. Rxa6 {[%clk 0:00:15.6]}
42... Qg4+ {[%clk 0:00:32.5]} 43. Kf1 {[%clk 0:00:14.9]} 43... Qxg7 {[%clk
0:00:33.2]} 0-1